bitfinex/quotes_SOLUSD_20250915
["timestamp","ask_amount","ask_price","bid_price","bid_amount"]
[1757938739662,0.66,238.15,238.11,6.23950505]
[1757938739830,0.66,238.14,238.11,6.23950505]
[1757938740246,0.66,238.14,238.11,0.1]
[1757938740465,0.66,238.13,238.11,0.1]
[1757938740974,0.66,238.12,238.11,0.1]
[1757938741137,0.66,238.12,238.06,0.06]
[1757938741138,6.13950505,238.1,238.06,0.06]
[1757938741341,6.13950505,238.08,238.06,1e-08]
[1757938741732,0.69,238.07,238.06,1e-08]
[1757938742654,4.89044524,238.07,238.06,1e-08]
[1757938742856,4.89044524,238.07,238.06,6.13950506]
[1757938742857,4.20044524,238.07,238.06,6.13950506]
[1757938743061,4.19973961,238.11,238.06,6.13950506]
[1757938743239,4.19973961,238.11,238.1,6.13950505]
[1757938743856,4.88973961,238.11,238.07,6.13950505]
[1757938744065,0.69,238.1,238.06,1e-08]
[1757938744451,0.69,238.09,238.06,1e-08]
[1757938744650,4.20026881,238.08,238.06,1e-08]
[1757938744852,4.89026881,238.08,238.06,1e-08]
[1757938745156,0.69,238.07,238.06,1e-08]
[1757938745663,4.89044524,238.07,238.06,1e-08]
[1757938745860,19.35189355,238.07,238.04,1e-08]
[1757938746060,0.69,238.06,238.04,1e-08]
[1757938746439,3.9603352,238.05,238.01,1e-08]
[1757938746645,0.69,238.06,238.01,1e-08]
[1757938746646,3.9603352,238.02,238.01,1e-08]
[1757938747041,35.70378458,238.07,238.01,1e-08]
[1757938747252,4.6503352,238.05,238.01,1e-08]
[1757938747452,3.9603352,238.03,238.01,1e-08]
[1757938747643,4.20132761,238.02,238.01,1e-08]
[1757938747845,4.89132761,238.02,238.01,1e-08]
[1757938748660,36.40128474,238.02,237.93,0.2]
[1757938748839,3.9603352,237.99,237.93,0.2]
[1757938749041,0.69,237.98,237.93,0.2]
[1757938749294,0.69,237.97,237.93,0.2]
[1757938749448,0.69,237.96,237.93,0.2]
[1757938749646,4.20256356,237.95,237.93,0.2]
[1757938750442,4.89256356,237.95,237.93,0.2]
[1757938751240,0.69,237.94,237.93,1e-08]
[1757938751459,4.20256356,237.95,237.93,1e-08]
[1757938752645,4.20256356,237.95,237.93,3.96033521]
[1757938753074,4.20203378,237.98,237.94,0.31]
[1757938753274,21.00663809,238.02,237.97,3.9603352]
[1757938753478,0.69,238.01,237.97,3.9603352]
[1757938753656,0.69,238.0,237.93,1e-08]
[1757938753861,0.69,238.0,237.96,3.9603352]
[1757938755474,14.70650027,237.99,237.96,3.9603352]
[1757938756678,14.70650027,237.99,237.93,1e-08]
[1757938756679,0.69,237.98,237.93,1e-08]
[1757938756887,14.70650027,237.99,237.96,3.9603352]
[1757938757181,14.70650027,237.99,237.93,1e-08]
[1757938757387,14.70773626,237.97,237.94,3.9603352]
[1757938757565,15.39773626,237.97,237.94,3.9603352]
[1757938757762,14.70773626,237.97,237.94,3.9603352]
[1757938757976,4.20221036,237.97,237.96,3.9603352]
[1757938758988,4.20185722,237.99,237.96,3.9603352]
[1757938759311,4.20132761,238.02,237.96,0.31]
[1757938759491,4.20115111,238.03,237.95,14.04775558]
[1757938759999,4.20115111,238.03,237.95,18.25031288]
[1757938760379,4.20115111,238.03,238.01,3.9603352]
[1757938760975,4.20086678,238.05,237.95,18.25031288]
[1757938761186,4.20086678,238.05,238.01,3.9603352]
[1757938761580,0.69,238.04,238.01,3.9603352]
[1757938762082,0.69,238.03,237.99,3.9603352]
[1757938762282,0.69,238.03,237.93,1e-08]
[1757938762283,0.69,238.02,237.94,3.9603352]
[1757938762684,0.69,238.01,237.94,3.9603352]
[1757938763191,0.69,238.0,237.93,1e-08]
[1757938763694,14.70650027,237.99,237.93,1e-08]
[1757938764881,14.70650027,237.99,237.94,3.9603352]
[1757938765191,0.69,237.98,237.94,3.9603352]
[1757938765993,4.20221036,237.97,237.94,3.9603352]
[1757938767280,36.35,238.02,237.96,3.9603352]
[1757938767681,0.03,237.99,237.96,3.9603352]
[1757938768096,0.69,237.98,237.94,3.9603352]
[1757938769600,4.20221036,237.97,237.93,1e-08]
[1757938769797,4.20221036,237.97,237.94,3.9603352]
[1757938769984,14.70773626,237.97,237.94,3.9603352]
[1757938770184,0.69,237.96,237.93,1e-08]
[1757938770598,0.69,237.95,237.93,1e-08]
[1757938771206,14.70773626,237.97,237.93,1e-08]
[1757938771584,0.69,237.96,237.93,1e-08]
[1757938772098,3.9603352,237.94,237.93,1e-08]
[1757938772602,4.6403352,237.94,237.93,1e-08]
[1757938772790,30.6403352,237.94,237.91,1e-08]
[1757938773109,30.6403352,237.94,237.9,1e-08]
[1757938773110,3.9603352,237.92,237.9,1e-08]
[1757938773486,0.68,237.91,237.9,1e-08]
[1757938773704,4.88327014,237.91,237.9,1e-08]
[1757938774993,4.20327014,237.91,237.9,1e-08]
[1757938775508,0.68,237.95,237.9,1e-08]
[1757938775695,4.20274018,237.94,237.9,1e-08]
[1757938777917,0.68,237.94,237.9,1e-08]
[1757938779513,4.20291682,237.93,237.9,1e-08]
[1757938780014,4.88291682,237.93,237.9,1e-08]
[1757938780202,4.20291682,237.93,237.9,1e-08]
[1757938780401,0.68,237.92,237.9,1e-08]
[1757938780816,18.67054408,237.93,237.9,1e-08]
[1757938780817,4.6403352,237.91,237.9,1e-08]
[1757938781530,8.84360534,237.91,237.9,1e-08]
[1757938781914,4.88327014,237.91,237.9,1e-08]
[1757938782115,8.84360534,237.91,237.9,1e-08]
[1757938782500,8.16236898,237.98,237.9,3.96033521]
[1757938782710,8.16236898,237.98,237.91,3.9603352]
[1757938782920,4.20203378,237.98,237.91,3.9603352]
[1757938783231,4.6703352,237.99,237.92,3.9603352]
[1757938783404,8.87232102,237.99,237.92,3.9603352]
[1757938784412,4.91198582,237.99,237.93,3.9603352]
[1757938784616,0.03,237.99,237.97,3.9603352]
[1757938786322,0.03,237.99,237.96,3.9603352]
[1757938788333,0.03,237.99,237.97,3.9603352]
[1757938788531,0.03,237.99,237.98,3.9603352]
[1757938789431,0.03,237.99,237.97,3.9603352]
[1757938789633,0.03,237.99,237.98,3.9603352]
[1757938790018,4.6703352,237.99,237.9,1e-08]
[1757938790225,3.9603352,237.98,237.91,0.20216157]
[1757938790410,3.9603352,237.97,237.91,0.20216157]
[1757938790606,3.9603352,237.97,237.91,0.06]
[1757938790802,3.9603352,237.96,237.91,0.06]
[1757938791209,3.9603352,237.97,237.91,0.06]
[1757938791508,4.20238695,237.96,237.91,0.06]
[1757938791724,8.16272215,237.96,237.91,0.06]
[1757938791925,4.6403352,237.95,237.91,0.06]
[1757938792237,3.9603352,237.94,237.91,0.06]
[1757938792418,4.6403352,237.94,237.91,0.06]
[1757938792731,4.23201153,237.99,237.93,3.9603352]
[1757938792919,4.23201153,237.99,237.94,3.9603352]
[1757938793118,4.91201153,237.99,237.94,3.9603352]
[1757938793833,0.71,237.99,237.94,8.16297353]
[1757938794131,0.71,237.99,237.94,3.9603352]
[1757938794516,0.03,237.99,237.95,4.10249677]
[1757938795234,4.23196486,237.99,237.95,4.10249677]
[1757938795418,4.23196486,237.99,237.93,3.9603352]
[1757938795611,0.03,237.99,237.98,3.9603352]
[1757938795811,0.03,237.99,237.98,44.24978936]
[1757938796133,0.03,237.99,237.98,43.69809078]
[1757938796435,0.03,237.99,237.98,0.14216157]
[1757938797616,0.03,237.99,237.96,3.9603352]
[1757938797812,0.03,237.99,237.97,0.14216157]
[1757938798012,0.03,237.99,237.96,3.9603352]
[1757938798622,0.03,237.99,237.97,4.20221036]
[1757938798825,0.03,237.99,237.96,3.9603352]
[1757938800221,0.03,237.99,237.96,8.16270911]
[1757938800418,0.03,237.99,237.96,3.9603352]
[1757938800618,0.03,237.99,237.91,0.06]
[1757938800619,0.7,237.98,237.91,0.06]
[1757938800926,0.7,237.98,237.91,4.0203352]
[1757938801233,0.7,237.98,237.93,3.9603352]
[1757938801534,0.7,237.97,237.92,3.9603352]
[1757938801736,0.71,237.96,237.92,3.9603352]
[1757938801921,0.71,237.95,237.91,0.06]
[1757938802119,0.71,237.95,237.91,4.0203352]
[1757938802538,14.73650027,237.99,237.91,0.20216157]
[1757938802838,4.6703352,237.98,237.91,0.06]
[1757938803431,4.6703352,237.98,237.91,4.0203352]
[1757938803618,0.71,237.98,237.94,3.9603352]
[1757938803814,0.71,237.97,237.94,3.9603352]
[1757938804037,4.20238695,237.96,237.92,3.9603352]
[1757938804220,0.71,237.95,237.92,3.9603352]
[1757938804537,0.71,237.95,237.91,4.0203352]
[1757938804728,0.71,237.94,237.91,4.0203352]
[1757938805138,0.71,237.93,237.91,4.0203352]
[1757938805323,0.71,237.93,237.91,0.06]
[1757938806443,0.71,237.92,237.91,0.06]
[1757938807425,15.41835433,237.96,237.91,6.20466731]
[1757938807635,0.71,237.95,237.91,6.20466731]
[1757938808225,0.71,237.94,237.91,6.20466731]
[1757938808427,0.71,237.93,237.91,0.06]
[1757938808925,0.71,237.92,237.91,0.06]
[1757938809546,0.71,237.94,237.91,0.06]
[1757938809937,0.71,237.93,237.91,0.06]
[1757938811150,4.20309347,237.92,237.91,0.06]
[1757938811651,4.91309347,237.92,237.91,0.06]
[1757938815339,0.71,237.92,237.91,0.06]
[1757938815943,4.91309347,237.92,237.91,0.06]
[1757938816345,4.20309347,237.92,237.91,0.06]
[1757938816744,4.91309347,237.92,237.91,0.06]
[1757938819451,11.05776078,237.92,237.91,0.06]
[1757938819655,11.05776078,237.92,237.9,1e-08]
[1757938819857,6.14466731,237.91,237.9,1e-08]
[1757938820154,4.91309347,237.92,237.9,1e-08]
[1757938820359,6.14466731,237.91,237.9,1e-08]
[1757938820760,11.05793745,237.91,237.9,1e-08]
[1757938823442,4.20274018,237.94,237.9,1e-08]
[1757938823960,0.71,237.93,237.9,1e-08]
[1757938825454,4.91299217,237.93,237.9,1e-08]
[1757938825766,4.9127275,237.95,237.9,6.14466732]
[1757938826659,0.71,237.94,237.9,6.14466732]
[1757938827052,0.71,237.97,237.9,10.348112]
[1757938827262,0.71,237.97,237.91,6.14466731]
[1757938827862,0.03,237.93,237.91,2.54747356]
[1757938828965,0.74,237.93,237.9,1e-08]
[1757938829151,0.71,237.92,237.9,1e-08]
[1757938829548,0.71,237.91,237.9,1e-08]
[1757938829759,0.71,237.91,237.88,0.06]
[1757938829760,36.25,237.91,237.88,1e-08]
[1757938829962,2.54747356,237.89,237.87,0.06]
[1757938830272,28.54747356,237.88,237.86,1e-08]
[1757938830469,2.54747356,237.87,237.86,1e-08]
[1757938830860,3.25747356,237.87,237.86,1e-08]
[1757938831167,7.46145052,237.87,237.86,1e-08]
[1757938831373,43.00145052,237.87,237.86,1e-08]
[1757938831559,7.46145052,237.87,237.86,1e-08]
[1757938832573,4.20397696,237.87,237.86,1e-08]
[1757938832873,4.92397696,237.87,237.86,1e-08]
[1757938833676,7.47145052,237.87,237.86,1e-08]
[1757938834054,4.92397696,237.87,237.86,1e-08]
[1757938834385,7.47145052,237.87,237.86,1e-08]
[1757938835067,4.92397696,237.87,237.86,1e-08]
[1757938835245,7.47145052,237.87,237.86,1e-08]
[1757938836361,6.75145052,237.87,237.86,1e-08]
[1757938837381,4.20362352,237.89,237.86,1e-08]
[1757938838766,3.29747356,237.93,237.86,2.54747357]
[1757938838969,3.29747356,237.93,237.86,2.97747357]
[1757938839259,0.03,237.93,237.87,2.54747356]
[1757938840060,0.03,237.93,237.87,6.75140378]
[1757938840266,0.03,237.93,237.87,2.54747356]
[1757938841470,0.03,237.93,237.92,2.54747356]
[1757938841861,0.03,237.93,237.92,2.97747356]
[1757938842182,0.03,237.93,237.92,2.54747356]
[1757938842360,0.03,237.93,237.92,2.97747356]
[1757938842566,0.03,237.93,237.92,2.54747356]
[1757938842986,0.03,237.93,237.92,2.97747356]
[1757938843482,0.03,237.93,237.92,7.18056703]
[1757938844055,0.03,237.93,237.92,2.54747356]
[1757938845065,0.03,237.93,237.92,7.18056703]
[1757938845379,0.03,237.93,237.92,6.75056703]
[1757938845761,0.03,237.93,237.92,2.54747356]
[1757938847874,0.03,237.93,237.92,6.75056703]
[1757938848959,0.03,237.93,237.88,0.14216157]
[1757938849262,0.72,237.92,237.89,2.54747356]
[1757938849455,0.72,237.91,237.87,2.54747356]
[1757938850185,0.72,237.91,237.88,2.54747356]
[1757938850677,0.72,237.9,237.86,1e-08]
[1757938851059,4.20362352,237.89,237.86,1e-08]
[1757938851254,4.20362352,237.89,237.86,2.54747357]
[1757938851482,0.72,237.9,237.86,2.54747357]
[1757938851680,4.92348348,237.9,237.86,2.54747357]
[1757938852176,0.72,237.9,237.86,2.54747357]
[1757938852483,4.92323655,237.92,237.88,2.54747356]
[1757938853163,0.72,237.91,237.88,2.54747356]
[1757938854486,4.20310924,237.92,237.88,2.54747356]
[1757938855083,0.72,237.91,237.88,2.54747356]
[1757938855286,0.72,237.91,237.89,2.54747356]
[1757938856686,4.23291941,237.93,237.89,2.54747356]
[1757938856976,0.03,237.93,237.9,2.54747356]
[1757938857184,0.75,237.93,237.9,2.54747356]
[1757938857783,4.95295867,237.93,237.9,2.54747356]
[1757938859480,0.75,237.93,237.9,2.54747356]
[1757938859969,0.72,237.92,237.89,2.54747356]
[1757938860181,4.23292912,237.93,237.89,2.54747356]
[1757938860379,0.72,237.92,237.86,1e-08]
[1757938860588,4.92326954,237.92,237.88,2.54747356]
[1757938860760,4.20326954,237.92,237.88,2.54747356]
[1757938860964,0.72,237.91,237.86,1e-08]
[1757938861262,3.26747356,237.91,237.86,1e-08]
[1757938861458,2.54747356,237.9,237.86,1e-08]
[1757938861674,2.54747356,237.89,237.86,1e-08]
[1757938861898,2.54747356,237.87,237.86,1e-08]
[1757938862060,2.54747356,237.88,237.86,1e-08]
[1757938862263,0.72,237.87,237.86,1e-08]
[1757938863065,4.92397696,237.87,237.86,1e-08]
[1757938864184,10.50786461,237.92,237.86,1e-08]
[1757938864362,0.72,237.91,237.88,2.54747356]
[1757938864563,0.72,237.91,237.89,2.54747356]
[1757938864976,0.72,237.91,237.88,2.54747356]
[1757938865175,0.72,237.9,237.88,2.54747356]
[1757938865577,0.75,237.93,237.89,2.54747356]
[1757938865887,0.75,237.93,237.86,1e-08]
[1757938865888,0.72,237.92,237.9,2.54747356]
[1757938866869,0.03,237.93,237.91,2.54747356]
[1757938867695,0.03,237.93,237.9,2.54747356]
[1757938867884,0.72,237.92,237.86,1e-08]
[1757938868195,0.72,237.92,237.86,1.63060408]
[1757938868370,0.72,237.91,237.86,1.63060408]
[1757938868890,0.72,237.9,237.86,1.63060408]
[1757938869095,0.72,237.89,237.86,1e-08]
[1757938869290,0.72,237.92,237.87,1.63060407]
[1757938869492,0.72,237.91,237.86,1.63060408]
[1757938869793,1.63060407,237.89,237.86,1e-08]
[1757938869975,2.35060407,237.9,237.86,1e-08]
[1757938870292,0.72,237.88,237.86,1e-08]
[1757938870992,0.72,237.91,237.86,1e-08]
[1757938871203,0.72,237.91,237.86,1.63060408]
[1757938871377,0.72,237.9,237.86,1.63060408]
[1757938871577,0.72,237.89,237.86,1.63060408]
[1757938871777,0.72,237.88,237.86,1e-08]
[1757938871972,0.72,237.91,237.86,1e-08]
[1757938872178,0.72,237.88,237.86,1e-08]
[1757938872378,4.20309347,237.92,237.87,1.63060407]
[1757938872578,0.03,237.93,237.91,1.63060407]
[1757938872874,0.03,237.93,237.92,1.63060407]
[1757938873380,0.03,237.93,237.92,5.83369754]
[1757938873774,0.03,237.93,237.92,6.26369754]
[1757938874495,0.03,237.93,237.92,6.40585911]
[1757938877787,0.03,237.93,237.92,20.00145312]
[1757938879181,0.03,237.93,237.92,55.34145312]
[1757938879896,0.03,237.93,237.92,1.63060407]
[1757938881374,0.03,237.93,237.92,5.83369754]
[1757938882790,0.03,237.93,237.92,1.63060407]
[1757938882990,0.75,237.93,237.92,1.63060407]
[1757938883184,0.75,237.93,237.91,1.63060407]
[1757938883400,0.03,237.93,237.91,1.63060407]
[1757938883578,0.72,237.92,237.91,1.63060407]
[1757938883784,0.72,237.92,237.9,1.63060407]
[1757938884100,0.72,237.91,237.88,1.63060407]
[1757938884281,0.72,237.9,237.88,1.69060407]
[1757938884487,0.72,237.89,237.88,0.06]
[1757938886211,0.72,237.92,237.88,1.69060407]
[1757938886406,0.72,237.91,237.88,1.69060407]
[1757938886701,0.72,237.9,237.88,1.69060407]
[1757938886880,0.72,237.89,237.88,0.06]
[1757938887509,0.75,237.93,237.88,1.69060407]
[1757938887682,0.72,237.92,237.89,1.63060407]
[1757938887881,0.72,237.91,237.89,1.63060407]
[1757938888497,0.03,237.93,237.9,1.63060407]
[1757938888710,0.03,237.93,237.92,1.63060407]
[1757938889503,0.03,237.93,237.92,5.83369754]
[1757938889807,0.03,237.93,237.92,1.63060407]
[1757938891492,2.38060407,237.93,237.88,0.06]
[1757938891709,0.75,237.93,237.88,0.06]
[1757938893215,4.20309347,237.92,237.88,0.06]
[1757938893415,0.71,237.91,237.88,0.06]
[1757938893996,4.20309347,237.92,237.88,0.06]
[1757938894197,0.71,237.9,237.88,0.06]
[1757938895599,0.71,237.89,237.88,0.06]
[1757938896518,0.71,237.89,237.88,1.69060407]
[1757938896894,0.03,237.93,237.88,5.8944043]
[1757938897102,0.74,237.93,237.91,1.63060407]
[1757938897498,0.71,237.92,237.9,1.63060407]
[1757938897727,0.71,237.91,237.9,1.63060407]
[1757938898523,0.03,237.93,237.9,1.63060407]
[1757938898817,0.71,237.92,237.9,1.63060407]
[1757938899004,0.71,237.91,237.89,1.63060407]
[1757938899719,0.71,237.9,237.88,0.06]
[1757938900218,0.71,237.89,237.88,0.06]
[1757938901797,4.91362352,237.89,237.88,0.06]
[1757938902619,6.54422759,237.89,237.88,0.06]
[1757938903632,6.54422759,237.89,237.88,1e-08]
[1757938903811,4.91362352,237.89,237.88,1e-08]
[1757938904127,6.54422759,237.89,237.88,1e-08]
[1757938904628,4.91362352,237.89,237.88,1e-08]
[1757938906823,6.54422759,237.89,237.88,1e-08]
[1757938907212,4.91362352,237.89,237.88,1e-08]
[1757938907620,0.71,237.89,237.88,1e-08]
[1757938908119,4.91362352,237.89,237.88,1e-08]
[1757938909204,4.20362352,237.89,237.88,1e-08]
[1757938909433,10.53742056,237.93,237.88,1e-08]
[1757938909434,0.71,237.91,237.88,1e-08]
[1757938909602,4.91327023,237.91,237.88,1e-08]
[1757938909810,0.71,237.9,237.88,1e-08]
[1757938910127,2.34060407,237.9,237.88,1e-08]
[1757938910626,0.71,237.89,237.88,1e-08]
[1757938911714,6.54422759,237.89,237.88,1e-08]
[1757938912306,4.91362352,237.89,237.88,1e-08]
[1757938913317,6.54422759,237.89,237.88,1e-08]
[1757938915726,0.68,237.92,237.88,1e-08]
[1757938915933,4.23292487,237.93,237.88,1e-08]
[1757938916129,0.68,237.92,237.88,1e-08]
[1757938916630,2.31060407,237.92,237.88,1e-08]
[1757938917332,6.51371332,237.92,237.88,1e-08]
[1757938918015,0.68,237.92,237.88,1e-08]
[1757938919038,4.8831117,237.92,237.88,1e-08]
[1757938919739,1.66060407,237.93,237.9,1.63060407]
[1757938919740,0.03,237.93,237.9,1.63060407]
[1757938920050,0.03,237.93,237.9,2.06060407]
[1757938920222,0.03,237.93,237.9,1.63060407]
[1757938920427,0.03,237.92,237.91,2.06060407]
[1757938920918,0.03,237.92,237.91,2.20276564]
[1757938921118,0.03,237.92,237.91,6.40603578]
[1757938921821,0.03,237.92,237.91,5.97603578]
[1757938922233,0.03,237.92,237.91,6.40603578]
[1757938923034,0.03,237.92,237.89,4.20346005]
[1757938923934,0.74,237.92,237.88,4.20377919]
[1757938924231,0.03,237.92,237.88,5.83438326]
[1757938924429,0.03,237.92,237.88,16.34388384]
[1757938924633,0.03,237.92,237.89,2.06060407]
[1757938924837,0.03,237.92,237.9,4.20344682]
[1757938925334,0.74,237.92,237.88,4.20363586]
[1757938925515,0.71,237.91,237.88,1e-08]
[1757938925914,1.66060407,237.92,237.88,1e-08]
[1757938926114,0.03,237.92,237.89,0.43]
[1757938926320,0.03,237.92,237.89,1.63060407]
[1757938926522,0.03,237.92,237.91,1.63060407]
[1757938926721,0.03,237.92,237.91,19.57162979]
[1757938926938,0.03,237.92,237.91,20.00162979]
[1757938927838,0.03,237.92,237.91,6.75022603]
[1757938928042,0.03,237.92,237.9,2.54695589]
[1757938928234,0.74,237.92,237.9,2.54695589]
[1757938928737,0.03,237.92,237.9,2.54695589]
[1757938928929,0.03,237.92,237.9,6.75038307]
[1757938929729,0.71,237.91,237.88,1e-08]
[1757938929935,0.71,237.91,237.88,2.5469559]
[1757938930136,0.03,237.92,237.88,2.5469559]
[1757938930316,0.71,237.91,237.88,2.5469559]
[1757938930522,0.71,237.9,237.88,2.5469559]
[1757938930944,4.20329245,237.91,237.88,1e-08]
[1757938931242,0.71,237.89,237.88,1e-08]
[1757938933038,4.91362352,237.89,237.88,1e-08]
[1757938933626,137.41362352,237.89,237.88,1e-08]
[1757938933837,140.24404331,237.89,237.88,1e-08]
[1757938934233,139.96057941,237.89,237.88,1e-08]
[1757938934448,137.41362352,237.89,237.88,1e-08]
[1757938935019,4.20350332,237.9,237.88,1e-08]
[1757938935224,0.71,237.89,237.88,1e-08]
[1757938937028,4.91362352,237.89,237.88,1e-08]
[1757938939931,7.46057941,237.89,237.88,1e-08]
[1757938940138,42.52057941,237.89,237.88,1e-08]
[1757938942936,45.35034686,237.89,237.88,1e-08]
[1757938944031,10.29034686,237.89,237.88,1e-08]
[1757938944226,42.78339097,237.89,237.88,1e-08]
[1757938944432,45.33034686,237.89,237.88,1e-08]
[1757938945263,42.50057941,237.89,237.88,1e-08]
[1757938946536,45.32924979,237.89,237.88,1e-08]
[1757938946734,10.28924979,237.89,237.88,1e-08]
[1757938946947,42.48057941,237.89,237.88,1e-08]
[1757938947145,45.30924979,237.89,237.88,1e-08]
[1757938949226,7.7422939,237.89,237.88,1e-08]
[1757938949432,41.77057941,237.89,237.88,1e-08]
[1757938949632,44.59924979,237.89,237.88,1e-08]
[1757938950247,42.0522939,237.89,237.88,1e-08]
[1757938950452,42.7622939,237.89,237.88,1e-08]
[1757938951254,39.93362352,237.89,237.88,1e-08]
[1757938952160,4.91362352,237.89,237.88,1e-08]
[1757938952358,39.91362352,237.89,237.88,1e-08]
[1757938952554,42.46057941,237.89,237.88,1e-08]
[1757938952744,45.28833517,237.89,237.88,1e-08]
[1757938957357,13.59559401,237.88,237.84,0.06]
[1757938957548,26.0,237.85,237.84,0.06]
[1757938957754,66.3537656,237.85,237.84,0.06]
[1757938957956,67.0137656,237.85,237.84,0.06]
[1757938958265,67.0137656,237.85,237.79,0.06]
[1757938958266,75.50354498,237.85,237.79,0.06]
[1757938958560,2.54695589,237.82,237.79,0.06]
[1757938958867,37.52695589,237.82,237.79,0.06]
[1757938959055,42.3918167,237.82,237.79,0.06]
[1757938959360,41.7318167,237.82,237.79,0.06]
[1757938959663,39.18486081,237.82,237.79,0.06]
[1757938959865,42.3918167,237.82,237.79,0.06]
[1757938960241,7.4118167,237.82,237.79,0.06]
[1757938960457,42.3918167,237.82,237.79,0.06]
[1757938960647,45.21653402,237.82,237.79,0.06]
[1757938960844,45.21653402,237.82,237.81,1e-08]
[1757938961044,58.9542896,237.82,237.81,1e-08]
[1757938961455,10.23653402,237.82,237.81,1e-08]
[1757938961773,42.3718167,237.82,237.81,1e-08]
[1757938961949,45.19653402,237.82,237.81,1e-08]
[1757938963467,10.23653402,237.82,237.81,1e-08]
[1757938963665,42.3718167,237.82,237.81,1e-08]
[1757938963870,45.19653402,237.82,237.81,1e-08]
[1757938964373,42.3718167,237.82,237.81,1e-08]
[1757938965273,4.20486081,237.82,237.81,1e-08]
[1757938965453,39.14486081,237.82,237.81,1e-08]
[1757938965852,34.94,237.82,237.81,1e-08]
[1757938966153,34.94,237.83,237.81,1e-08]
[1757938967056,34.94,237.83,237.81,0.49000001]
[1757938967251,39.14480957,237.83,237.81,0.49000001]
[1757938967652,39.14480957,237.83,237.81,1e-08]
[1757938969159,4.2041537,237.86,237.82,0.49]
[1757938969505,34.92,237.85,237.81,1e-08]
[1757938969783,34.92,237.85,237.81,0.49000001]
[1757938971062,34.92,237.85,237.81,1e-08]
[1757938971063,35.58,237.85,237.81,1e-08]
[1757938971586,4.20450723,237.84,237.81,1e-08]
[1757938974068,39.12434464,237.85,237.81,3.0369559]
[1757938974279,39.12434464,237.85,237.81,1e-08]
[1757938974587,39.10434464,237.85,237.81,1e-08]
[1757938975780,39.76434464,237.85,237.81,1e-08]
[1757938975985,0.03,237.85,237.82,3.03695589]
[1757938976173,0.03,237.85,237.83,3.03695589]
[1757938976373,0.03,237.85,237.84,3.03695589]
[1757938977266,0.03,237.85,237.84,7.24146312]
[1757938980775,0.03,237.85,237.84,2.54695589]
[1757938981462,0.03,237.85,237.84,3.03695589]
[1757938981868,0.03,237.85,237.84,7.24146312]
[1757938982292,0.03,237.85,237.84,6.75146312]
[1757938982776,0.03,237.85,237.84,2.54695589]
[1757938983493,0.03,237.85,237.84,6.75146312]
[1757938984377,0.03,237.85,237.84,20.9792187]
[1757938984579,0.03,237.85,237.84,23.52617459]
[1757938985706,0.03,237.88,237.87,39.73775558]
[1757938985871,0.03,237.9,237.88,13.73775558]
[1757938986197,0.03,237.9,237.89,55.32833499]
[1757938986382,0.03,237.9,237.89,55.81833499]
[1757938986772,0.03,237.9,237.89,56.23869734]
[1757938988578,0.03,237.92,237.91,39.73775558]
[1757938988774,0.03,237.92,237.91,42.28471147]
[1757938989096,0.03,237.92,237.91,42.77471147]
[1757938989278,0.03,237.92,237.91,16.77471147]
[1757938989880,0.03,237.92,237.91,15.85713547]
[1757938990797,0.03,237.92,237.91,46.06040561]
[1757938991097,0.03,237.92,237.91,20.06040561]
[1757938992380,0.03,237.92,237.91,15.36713547]
[1757938993096,0.74,237.92,237.91,15.36713547]
[1757938994996,0.03,237.92,237.91,15.36713547]
[1757938996101,0.03,237.92,237.91,15.2249739]
[1757938996678,0.74,237.92,237.89,1.62937989]
[1757938996903,0.71,237.91,237.9,1.62937989]
[1757938998707,0.03,237.92,237.88,13.59559401]
[1757938999702,0.74,237.92,237.88,13.59559401]